[Event "Titled Tuesday Blitz August 15 Late 2023"]
[White "Dubov, Daniil"]
[Black "Bazilius, Augustinas"]
[WhiteFideId "24126055"]
[BlackFideId "12832251"]
[WhiteElo "3040"]
[BlackElo "2484"]
[Result "1-0"]
[Round "1"]
[TimeControl "180+1"]
[Date "2023.08.15"]
[WhiteClock "0:00:19"]
[BlackClock "0:00:00"]
[Board "12"]

1. Nf3 {[%clk 0:03:00]}  Nf6 {[%clk 0:02:58]} 2. g3 {[%clk 0:02:59]}  c5 {[%clk 0:02:55]} 3. c4 {[%clk 0:02:59]}  d5 {[%clk 0:02:55]} 4. cxd5 {[%clk 0:02:58]}  Nxd5 {[%clk 0:02:56]} 5. Bg2 {[%clk 0:02:58]}  Nc6 {[%clk 0:02:56]} 6. d4 {[%clk 0:02:59]}  cxd4 {[%clk 0:02:49]} 7. O-O {[%clk 0:02:59]}  e5 {[%clk 0:02:45]} 8. Nxe5 {[%clk 0:02:59]}  Bc5 {[%clk 0:02:28]} 9. Nxc6 {[%clk 0:02:53]}  bxc6 {[%clk 0:02:29]} 10. Qc2 {[%clk 0:02:53]}  Qe7 {[%clk 0:02:20]} 11. Bxd5 {[%clk 0:02:50]}  cxd5 {[%clk 0:02:21]} 12. b4 {[%clk 0:02:50]}  Bb6 {[%clk 0:02:03]} 13. Qc6+ {[%clk 0:02:49]}  Qd7 {[%clk 0:02:03]} 14. Qxa8 {[%clk 0:02:48]}  O-O {[%clk 0:02:04]} 15. a4 {[%clk 0:02:28]}  Bb7 {[%clk 0:02:04]} 16. Qxf8+ {[%clk 0:02:27]}  Kxf8 {[%clk 0:02:04]} 17. Nd2 {[%clk 0:02:23]}  Qe7 {[%clk 0:01:58]} 18. a5 {[%clk 0:02:13]}  Bc7 {[%clk 0:01:53]} 19. b5 {[%clk 0:02:09]}  Bd6 {[%clk 0:01:45]} 20. Nf3 {[%clk 0:01:59]}  Qxe2 {[%clk 0:01:35]} 21. Nxd4 {[%clk 0:01:56]}  Qc4 {[%clk 0:01:33]} 22. Be3 {[%clk 0:01:53]}  Be5 {[%clk 0:01:30]} 23. Rac1 {[%clk 0:01:50]}  Qb4 {[%clk 0:01:23]} 24. Nc6 {[%clk 0:01:46]}  Qxb5 {[%clk 0:01:19]} 25. Bc5+ {[%clk 0:01:38]}  Kg8 {[%clk 0:01:05]} 26. Nxe5 {[%clk 0:01:37]}  d4 {[%clk 0:00:41]} 27. Rb1 {[%clk 0:01:29]}  Qxc5 {[%clk 0:00:32]} 28. Rxb7 {[%clk 0:01:27]}  Qxe5 {[%clk 0:00:30]} 29. Rxa7 {[%clk 0:01:26]}  h5 {[%clk 0:00:28]} 30. Rd7 {[%clk 0:01:19]}  Qxa5 {[%clk 0:00:25]} 31. Rxd4 {[%clk 0:01:19]}  g6 {[%clk 0:00:25]} 32. h4 {[%clk 0:01:18]}  Kg7 {[%clk 0:00:21]} 33. Rfd1 {[%clk 0:01:18]}  Qf5 {[%clk 0:00:21]} 34. Rf4 {[%clk 0:01:17]}  Qe6 {[%clk 0:00:19]} 35. Rd3 {[%clk 0:01:15]}  Qe1+ {[%clk 0:00:16]} 36. Kh2 {[%clk 0:01:15]}  f5 {[%clk 0:00:14]} 37. Re3 {[%clk 0:01:14]}  Qa5 {[%clk 0:00:12]} 38. Rd4 {[%clk 0:01:10]}  Qc5 {[%clk 0:00:10]} 39. Red3 {[%clk 0:00:54]}  Kh6 {[%clk 0:00:09]} 40. Rd2 {[%clk 0:00:52]}  Qc3 {[%clk 0:00:08]} 41. Kg2 {[%clk 0:00:48]}  Qc6+ {[%clk 0:00:05]} 42. Kg1 {[%clk 0:00:47]}  Qc1+ {[%clk 0:00:03]} 43. Kh2 {[%clk 0:00:46]}  Qc5 {[%clk 0:00:03]} 44. Rf4 {[%clk 0:00:45]}  Qc3 {[%clk 0:00:02]} 45. Rd6 {[%clk 0:00:43]}  Qc5 {[%clk 0:00:02]} 46. Rf6 {[%clk 0:00:42]}  Kg7 {[%clk 0:00:01]} 47. Re6 {[%clk 0:00:42]}  Kf7 {[%clk 0:00:01]} 48. Ra6 {[%clk 0:00:41]}  Kg7 {[%clk 0:00:02]} 49. Raa4 {[%clk 0:00:36]}  Qb6 {[%clk 0:00:02]} 50. Ra2 {[%clk 0:00:33]}  Qc5 {[%clk 0:00:02]} 51. Rfa4 {[%clk 0:00:33]}  Kh6 {[%clk 0:00:03]} 52. Ra5 {[%clk 0:00:32]}  Qb6 {[%clk 0:00:02]} 53. Ra6 {[%clk 0:00:31]}  Qc5 {[%clk 0:00:03]} 54. Re6 {[%clk 0:00:30]}  Qd5 {[%clk 0:00:03]} 55. Raa6 {[%clk 0:00:28]}  Qc5 {[%clk 0:00:02]} 56. Kg1 {[%clk 0:00:21]}  Qc1+ {[%clk 0:00:01]} 57. Kg2 {[%clk 0:00:21]}  Qc5 {[%clk 0:00:01]} 58. Rxg6+ {[%clk 0:00:21]}  Kh7 {[%clk 0:00:02]} 59. Rh6+ {[%clk 0:00:20]}  Kg7 {[%clk 0:00:02]} 60. Rhd6 {[%clk 0:00:20]}  Qc4 {[%clk 0:00:02]} 61. Rd7+ {[%clk 0:00:19]}  Kf8 {[%clk 0:00:00]} 62. Ra8+ {[%clk 0:00:19]} 1-0


[Site "https://www.chess.com"]

[Event "Titled Tuesday Blitz August 15 Late 2023"]
[White "Kirillov, Dmitry"]
[Black "Bluebaum, Matthias"]
[WhiteFideId "34180572"]
[BlackFideId "24651516"]
[WhiteElo "2484"]
[BlackElo "3029"]
[Result "0-1"]
[Round "1"]
[TimeControl "180+1"]
[Date "2023.08.15"]
[WhiteClock "0:00:16"]
[BlackClock "0:01:26"]
[Board "13"]

1. d4 {[%clk 0:02:33]}  d5 {[%clk 0:02:58]} 2. c4 {[%clk 0:02:33]}  e6 {[%clk 0:02:59]} 3. Nc3 {[%clk 0:02:33]}  Bb4 {[%clk 0:03:00]} 4. Nf3 {[%clk 0:02:30]}  Nf6 {[%clk 0:03:00]} 5. Bg5 {[%clk 0:02:28]}  h6 {[%clk 0:03:00]} 6. Bxf6 {[%clk 0:02:28]}  Qxf6 {[%clk 0:03:01]} 7. e3 {[%clk 0:02:29]}  c5 {[%clk 0:03:00]} 8. cxd5 {[%clk 0:02:28]}  exd5 {[%clk 0:03:01]} 9. a3 {[%clk 0:02:27]}  Bxc3+ {[%clk 0:03:01]} 10. bxc3 {[%clk 0:02:28]}  O-O {[%clk 0:03:01]} 11. Be2 {[%clk 0:02:25]}  Bf5 {[%clk 0:03:00]} 12. O-O {[%clk 0:02:25]}  c4 {[%clk 0:02:55]} 13. Ne5 {[%clk 0:02:19]}  Nc6 {[%clk 0:02:55]} 14. f4 {[%clk 0:02:19]}  Qe6 {[%clk 0:02:51]} 15. g4 {[%clk 0:02:17]}  Be4 {[%clk 0:02:50]} 16. f5 {[%clk 0:02:17]}  Qd6 {[%clk 0:02:49]} 17. Bf3 {[%clk 0:02:10]}  Nxe5 {[%clk 0:02:46]} 18. Bxe4 {[%clk 0:02:04]}  dxe4 {[%clk 0:02:45]} 19. dxe5 {[%clk 0:02:04]}  Qxe5 {[%clk 0:02:46]} 20. Qd4 {[%clk 0:02:03]}  Qxd4 {[%clk 0:02:46]} 21. exd4 {[%clk 0:02:04]}  Rfe8 {[%clk 0:02:39]} 22. Rfe1 {[%clk 0:02:04]}  e3 {[%clk 0:02:33]} 23. Kg2 {[%clk 0:02:03]}  Re4 {[%clk 0:02:29]} 24. Kf3 {[%clk 0:02:03]}  Rae8 {[%clk 0:02:30]} 25. Rab1 {[%clk 0:01:59]}  e2 {[%clk 0:02:15]} 26. Rxb7 {[%clk 0:01:58]}  Re3+ {[%clk 0:02:15]} 27. Kf2 {[%clk 0:01:58]}  Rxc3 {[%clk 0:02:11]} 28. Rxa7 {[%clk 0:01:58]}  Rh3 {[%clk 0:02:09]} 29. Kg2 {[%clk 0:01:55]}  Rd3 {[%clk 0:02:09]} 30. Rd7 {[%clk 0:01:32]}  c3 {[%clk 0:02:09]} 31. Rc7 {[%clk 0:01:32]}  Re4 {[%clk 0:01:44]} 32. h3 {[%clk 0:01:27]}  Ree3 {[%clk 0:01:43]} 33. a4 {[%clk 0:01:01]}  Rxd4 {[%clk 0:01:40]} 34. a5 {[%clk 0:00:55]}  Ra4 {[%clk 0:01:40]} 35. Kf2 {[%clk 0:00:55]}  Rxh3 {[%clk 0:01:39]} 36. Rxe2 {[%clk 0:00:50]}  Rh2+ {[%clk 0:01:36]} 37. Ke3 {[%clk 0:00:40]}  Rxe2+ {[%clk 0:01:33]} 38. Kxe2 {[%clk 0:00:40]}  Rxg4 {[%clk 0:01:34]} 39. Rxc3 {[%clk 0:00:40]}  Ra4 {[%clk 0:01:34]} 40. Rc8+ {[%clk 0:00:37]}  Kh7 {[%clk 0:01:34]} 41. Rc5 {[%clk 0:00:34]}  f6 {[%clk 0:01:29]} 42. Kf3 {[%clk 0:00:33]}  h5 {[%clk 0:01:29]} 43. Ke3 {[%clk 0:00:23]}  Kh6 {[%clk 0:01:30]} 44. Kd3 {[%clk 0:00:24]}  Kg5 {[%clk 0:01:27]} 45. Kc3 {[%clk 0:00:22]}  h4 {[%clk 0:01:28]} 46. Kb3 {[%clk 0:00:22]}  Ra1 {[%clk 0:01:28]} 47. Kb2 {[%clk 0:00:22]}  Re1 {[%clk 0:01:26]} 48. a6 {[%clk 0:00:21]}  Re7 {[%clk 0:01:26]} 49. Ra5 {[%clk 0:00:19]}  Ra7 {[%clk 0:01:26]} 50. Kc3 {[%clk 0:00:19]}  h3 {[%clk 0:01:26]} 51. Kd4 {[%clk 0:00:19]}  h2 {[%clk 0:01:26]} 52. Ra1 {[%clk 0:00:16]}  Rxa6 {[%clk 0:01:26]} 0-1


[Site "https://www.chess.com"]

[Event "Titled Tuesday Blitz August 15 Late 2023"]
[White "Sadhwani, Raunak"]
[Black "Goncalves, Davi Sulzbacher"]
[WhiteFideId "35093487"]
[BlackFideId "2154510"]
[WhiteElo "3012"]
[BlackElo "2479"]
[Result "1-0"]
[Round "1"]
[TimeControl "180+1"]
[Date "2023.08.15"]
[WhiteClock "0:00:17"]
[BlackClock "0:00:00"]
[Board "16"]

1. b3 {[%clk 0:02:47]}  Nf6 {[%clk 0:02:58]} 2. Bb2 {[%clk 0:02:43]}  g6 {[%clk 0:02:58]} 3. Nf3 {[%clk 0:02:43]}  Bg7 {[%clk 0:02:58]} 4. g3 {[%clk 0:02:42]}  O-O {[%clk 0:02:58]} 5. Bg2 {[%clk 0:02:42]}  d5 {[%clk 0:02:59]} 6. O-O {[%clk 0:02:42]}  c6 {[%clk 0:02:59]} 7. e3 {[%clk 0:02:41]}  a5 {[%clk 0:02:58]} 8. c4 {[%clk 0:02:41]}  Bf5 {[%clk 0:02:54]} 9. Re1 {[%clk 0:02:34]}  Nbd7 {[%clk 0:02:49]} 10. Nd4 {[%clk 0:02:33]}  Bd3 {[%clk 0:02:38]} 11. cxd5 {[%clk 0:02:30]}  Nxd5 {[%clk 0:02:31]} 12. Nc3 {[%clk 0:02:28]}  Bxd4 {[%clk 0:02:12]} 13. exd4 {[%clk 0:02:29]}  N7f6 {[%clk 0:02:11]} 14. Na4 {[%clk 0:02:14]}  Nb4 {[%clk 0:01:56]} 15. Nc5 {[%clk 0:02:13]}  b6 {[%clk 0:01:44]} 16. a3 {[%clk 0:02:06]}  bxc5 {[%clk 0:01:23]} 17. axb4 {[%clk 0:02:07]}  cxb4 {[%clk 0:01:23]} 18. Qf3 {[%clk 0:02:08]}  Bb5 {[%clk 0:01:11]} 19. d5 {[%clk 0:02:06]}  Nxd5 {[%clk 0:01:10]} 20. h4 {[%clk 0:02:06]}  Qd7 {[%clk 0:01:03]} 21. h5 {[%clk 0:01:49]}  Qf5 {[%clk 0:01:03]} 22. Qxf5 {[%clk 0:01:48]}  gxf5 {[%clk 0:01:03]} 23. Bxd5 {[%clk 0:01:49]}  cxd5 {[%clk 0:01:02]} 24. Rxe7 {[%clk 0:01:49]}  Bd3 {[%clk 0:00:48]} 25. Re5 {[%clk 0:01:41]}  Bc2 {[%clk 0:00:45]} 26. Rxd5 {[%clk 0:01:39]}  Bxb3 {[%clk 0:00:41]} 27. Rxf5 {[%clk 0:01:39]}  f6 {[%clk 0:00:35]} 28. Rfxa5 {[%clk 0:01:27]}  Rxa5 {[%clk 0:00:34]} 29. Rxa5 {[%clk 0:01:28]}  Rd8 {[%clk 0:00:30]} 30. d4 {[%clk 0:00:54]}  Bd5 {[%clk 0:00:26]} 31. Kf1 {[%clk 0:00:37]}  Kf7 {[%clk 0:00:24]} 32. Ke2 {[%clk 0:00:37]}  Ke6 {[%clk 0:00:16]} 33. g4 {[%clk 0:00:30]}  Rc8 {[%clk 0:00:13]} 34. Kd3 {[%clk 0:00:31]}  Bc4+ {[%clk 0:00:13]} 35. Ke4 {[%clk 0:00:30]}  Be2 {[%clk 0:00:12]} 36. d5+ {[%clk 0:00:30]}  Kd7 {[%clk 0:00:12]} 37. f3 {[%clk 0:00:26]}  Rc4+ {[%clk 0:00:11]} 38. Ke3 {[%clk 0:00:26]}  Bd1 {[%clk 0:00:11]} 39. Bxf6 {[%clk 0:00:24]}  Rc2 {[%clk 0:00:11]} 40. Be5 {[%clk 0:00:23]}  b3 {[%clk 0:00:11]} 41. Ra7+ {[%clk 0:00:21]}  Kc8 {[%clk 0:00:09]} 42. d6 {[%clk 0:00:22]}  Re2+ {[%clk 0:00:06]} 43. Kf4 {[%clk 0:00:19]}  Rd2 {[%clk 0:00:06]} 44. Rc7+ {[%clk 0:00:19]}  Kd8 {[%clk 0:00:03]} 45. Rxh7 {[%clk 0:00:18]}  Rb2 {[%clk 0:00:00]} 46. Bxb2 {[%clk 0:00:17]} 1-0


[Site "https://www.chess.com"]

[Event "Titled Tuesday Blitz August 15 Late 2023"]
[White "Bochnicka, Vladimir"]
[Black "Andreikin, Dmitry"]
[WhiteFideId "14943450"]
[BlackFideId "4158814"]
[WhiteElo "2478"]
[BlackElo "3011"]
[Result "0-1"]
[Round "1"]
[TimeControl "180+1"]
[Date "2023.08.15"]
[WhiteClock "0:00:11"]
[BlackClock "0:01:53"]
[Board "17"]

1. e4 {[%clk 0:03:00]}  e5 {[%clk 0:02:58]} 2. Nf3 {[%clk 0:03:00]}  Nc6 {[%clk 0:02:58]} 3. Bc4 {[%clk 0:03:01]}  Bc5 {[%clk 0:02:58]} 4. c3 {[%clk 0:03:01]}  Nf6 {[%clk 0:02:57]} 5. d3 {[%clk 0:03:02]}  d6 {[%clk 0:02:55]} 6. Nbd2 {[%clk 0:03:02]}  h6 {[%clk 0:02:52]} 7. Nf1 {[%clk 0:03:02]}  Ng4 {[%clk 0:02:44]} 8. Ne3 {[%clk 0:02:58]}  Nxe3 {[%clk 0:02:41]} 9. Bxe3 {[%clk 0:02:58]}  Bb6 {[%clk 0:02:40]} 10. O-O {[%clk 0:02:58]}  Bg4 {[%clk 0:02:39]} 11. h3 {[%clk 0:02:43]}  Bh5 {[%clk 0:02:38]} 12. b4 {[%clk 0:02:42]}  Qf6 {[%clk 0:02:36]} 13. g4 {[%clk 0:02:19]}  Bg6 {[%clk 0:02:35]} 14. g5 {[%clk 0:02:19]}  Qe7 {[%clk 0:02:33]} 15. Nh4 {[%clk 0:02:07]}  Bxe3 {[%clk 0:02:23]} 16. Nxg6 {[%clk 0:02:07]}  Qxg5+ {[%clk 0:02:21]} 17. Kh1 {[%clk 0:02:03]}  fxg6 {[%clk 0:02:15]} 18. fxe3 {[%clk 0:02:01]}  O-O-O {[%clk 0:02:12]} 19. Qg4+ {[%clk 0:01:03]}  Qxg4 {[%clk 0:02:12]} 20. hxg4 {[%clk 0:01:04]}  Rdf8 {[%clk 0:02:12]} 21. Bf7 {[%clk 0:00:59]}  g5 {[%clk 0:02:07]} 22. Kg2 {[%clk 0:00:59]}  Kd8 {[%clk 0:02:07]} 23. a4 {[%clk 0:00:57]}  Ke7 {[%clk 0:02:07]} 24. Bg6 {[%clk 0:00:55]}  Rxf1 {[%clk 0:02:05]} 25. Rxf1 {[%clk 0:00:54]}  Rf8 {[%clk 0:02:06]} 26. Rxf8 {[%clk 0:00:35]}  Kxf8 {[%clk 0:02:07]} 27. Bf5 {[%clk 0:00:36]}  Ke7 {[%clk 0:02:00]} 28. Bc8 {[%clk 0:00:34]}  Nd8 {[%clk 0:02:00]} 29. d4 {[%clk 0:00:29]}  g6 {[%clk 0:02:00]} 30. c4 {[%clk 0:00:24]}  c5 {[%clk 0:01:56]} 31. dxe5 {[%clk 0:00:11]}  cxb4 {[%clk 0:01:53]} 0-1


[Site "https://www.chess.com"]

[Event "Titled Tuesday Blitz August 15 Late 2023"]
[White "Indjic, Aleksandar"]
[Black "Sam, Gabriel"]
[WhiteFideId "911925"]
[BlackFideId "75000776"]
[WhiteElo "3001"]
[BlackElo "2477"]
[Result "1-0"]
[Round "1"]
[TimeControl "180+1"]
[Date "2023.08.15"]
[WhiteClock "0:01:45"]
[BlackClock "0:00:11"]
[Board "18"]

1. d4 {[%clk 0:03:00]}  Nf6 {[%clk 0:02:56]} 2. Nf3 {[%clk 0:02:57]}  d5 {[%clk 0:02:54]} 3. Bg5 {[%clk 0:02:56]}  Ne4 {[%clk 0:02:46]} 4. Bf4 {[%clk 0:02:56]}  c5 {[%clk 0:02:33]} 5. e3 {[%clk 0:02:56]}  Nc6 {[%clk 0:02:25]} 6. c3 {[%clk 0:02:55]}  Bf5 {[%clk 0:02:24]} 7. Nbd2 {[%clk 0:02:54]}  e6 {[%clk 0:02:23]} 8. Nxe4 {[%clk 0:02:54]}  Bxe4 {[%clk 0:02:24]} 9. Ne5 {[%clk 0:02:51]}  f6 {[%clk 0:02:15]} 10. Nxc6 {[%clk 0:02:49]}  bxc6 {[%clk 0:02:16]} 11. Bd3 {[%clk 0:02:43]}  Bxd3 {[%clk 0:02:12]} 12. Qxd3 {[%clk 0:02:42]}  Bd6 {[%clk 0:02:12]} 13. O-O {[%clk 0:02:41]}  O-O {[%clk 0:02:10]} 14. Bg3 {[%clk 0:02:33]}  cxd4 {[%clk 0:02:04]} 15. cxd4 {[%clk 0:02:31]}  c5 {[%clk 0:01:58]} 16. dxc5 {[%clk 0:02:31]}  Bxc5 {[%clk 0:01:56]} 17. Rac1 {[%clk 0:02:31]}  Bd6 {[%clk 0:01:53]} 18. Rc6 {[%clk 0:02:30]}  Bxg3 {[%clk 0:01:48]} 19. hxg3 {[%clk 0:02:31]}  Qd7 {[%clk 0:01:48]} 20. Qa6 {[%clk 0:02:31]}  e5 {[%clk 0:01:38]} 21. Rfc1 {[%clk 0:02:31]}  Rfd8 {[%clk 0:01:31]} 22. Rc7 {[%clk 0:02:21]}  Qe8 {[%clk 0:01:19]} 23. Rxa7 {[%clk 0:02:16]}  Rxa7 {[%clk 0:01:20]} 24. Qxa7 {[%clk 0:02:16]}  d4 {[%clk 0:01:21]} 25. Rc7 {[%clk 0:02:07]}  Qg6 {[%clk 0:00:53]} 26. exd4 {[%clk 0:02:05]}  exd4 {[%clk 0:00:51]} 27. Rd7 {[%clk 0:02:05]}  Re8 {[%clk 0:00:31]} 28. Qxd4 {[%clk 0:01:51]}  Re1+ {[%clk 0:00:19]} 29. Kh2 {[%clk 0:01:51]}  Qh6+ {[%clk 0:00:19]} 30. Qh4 {[%clk 0:01:48]}  Qc1 {[%clk 0:00:19]} 31. Rd8+ {[%clk 0:01:47]}  Kf7 {[%clk 0:00:19]} 32. Qh5+ {[%clk 0:01:48]}  g6 {[%clk 0:00:10]} 33. Qxh7+ {[%clk 0:01:46]}  Ke6 {[%clk 0:00:10]} 34. Qd7+ {[%clk 0:01:45]}  Ke5 {[%clk 0:00:11]} 35. Qd5# {[%clk 0:01:45]} 1-0


[Site "https://www.chess.com"]

[Event "Titled Tuesday Blitz August 15 Late 2023"]
[White "Kirk, Ezra"]
[Black "Drygalov, Sergey"]
[WhiteFideId "600067"]
[BlackFideId "24171743"]
[WhiteElo "2475"]
[BlackElo "2971"]
[Result "1-0"]
[Round "1"]
[TimeControl "180+1"]
[Date "2023.08.15"]
[WhiteClock "0:00:06"]
[BlackClock "0:00:19"]
[Board "21"]

1. Nf3 {[%clk 0:02:58]}  d5 {[%clk 0:02:53]} 2. d4 {[%clk 0:02:56]}  Nf6 {[%clk 0:02:53]} 3. c4 {[%clk 0:02:54]}  e6 {[%clk 0:02:53]} 4. Nc3 {[%clk 0:02:52]}  c6 {[%clk 0:02:51]} 5. g3 {[%clk 0:02:52]}  Nbd7 {[%clk 0:02:50]} 6. Bg2 {[%clk 0:02:52]}  dxc4 {[%clk 0:02:50]} 7. a4 {[%clk 0:02:51]}  a5 {[%clk 0:02:49]} 8. O-O {[%clk 0:02:51]}  Be7 {[%clk 0:02:49]} 9. Qc2 {[%clk 0:02:51]}  O-O {[%clk 0:02:49]} 10. h4 {[%clk 0:02:50]}  h6 {[%clk 0:02:42]} 11. e4 {[%clk 0:02:26]}  b6 {[%clk 0:02:41]} 12. Nd2 {[%clk 0:02:21]}  Ba6 {[%clk 0:02:41]} 13. e5 {[%clk 0:02:16]}  Nd5 {[%clk 0:02:41]} 14. Nde4 {[%clk 0:02:16]}  Rc8 {[%clk 0:02:35]} 15. h5 {[%clk 0:02:06]}  c5 {[%clk 0:02:27]} 16. Be3 {[%clk 0:01:33]}  Nb4 {[%clk 0:02:27]} 17. Qe2 {[%clk 0:01:30]}  Nd3 {[%clk 0:02:27]} 18. Rad1 {[%clk 0:01:10]}  cxd4 {[%clk 0:02:22]} 19. Bxd4 {[%clk 0:01:09]}  N7c5 {[%clk 0:02:22]} 20. Qe3 {[%clk 0:01:03]}  Nxb2 {[%clk 0:02:08]} 21. Bxc5 {[%clk 0:00:59]}  Nxd1 {[%clk 0:02:05]} 22. Rxd1 {[%clk 0:00:59]}  Bxc5 {[%clk 0:01:36]} 23. Nxc5 {[%clk 0:00:55]}  Qc7 {[%clk 0:01:12]} 24. N5e4 {[%clk 0:00:47]}  Rcd8 {[%clk 0:00:50]} 25. Nd6 {[%clk 0:00:42]}  f6 {[%clk 0:00:45]} 26. Bh3 {[%clk 0:00:38]}  f5 {[%clk 0:00:44]} 27. Bg2 {[%clk 0:00:30]}  Qc5 {[%clk 0:00:35]} 28. Qxc5 {[%clk 0:00:25]}  bxc5 {[%clk 0:00:36]} 29. Bf1 {[%clk 0:00:24]}  Rb8 {[%clk 0:00:31]} 30. Ncb5 {[%clk 0:00:24]}  c3 {[%clk 0:00:24]} 31. Bc4 {[%clk 0:00:21]}  Kh8 {[%clk 0:00:19]} 32. Rc1 {[%clk 0:00:21]}  f4 {[%clk 0:00:19]} 33. Rxc3 {[%clk 0:00:20]}  fxg3 {[%clk 0:00:19]} 34. fxg3 {[%clk 0:00:20]}  Bb7 {[%clk 0:00:19]} 35. Bxe6 {[%clk 0:00:19]}  Bc6 {[%clk 0:00:19]} 36. Bf7 {[%clk 0:00:14]}  Bd7 {[%clk 0:00:11]} 37. e6 {[%clk 0:00:13]}  Bxe6 {[%clk 0:00:12]} 38. Bxe6 {[%clk 0:00:14]}  Rf6 {[%clk 0:00:13]} 39. Bf5 {[%clk 0:00:12]}  g6 {[%clk 0:00:08]} 40. hxg6 {[%clk 0:00:12]}  Kg7 {[%clk 0:00:09]} 41. g4 {[%clk 0:00:11]}  h5 {[%clk 0:00:10]} 42. gxh5 {[%clk 0:00:10]}  Kh6 {[%clk 0:00:10]} 43. Rg3 {[%clk 0:00:09]}  Rg8 {[%clk 0:00:09]} 44. Bg4 {[%clk 0:00:03]}  Kg5 {[%clk 0:00:08]} 45. Be6+ {[%clk 0:00:02]}  Kf4 {[%clk 0:00:07]} 46. Bg4 {[%clk 0:00:02]}  Kxg3 {[%clk 0:00:06]} 47. Ne4+ {[%clk 0:00:02]}  Kf4 {[%clk 0:00:07]} 48. Nxf6 {[%clk 0:00:03]}  Rd8 {[%clk 0:00:07]} 49. g7 {[%clk 0:00:03]}  c4 {[%clk 0:00:06]} 50. g8=Q {[%clk 0:00:03]}  Rxg8 {[%clk 0:00:07]} 51. Nxg8 {[%clk 0:00:04]}  Kxg4 {[%clk 0:00:07]} 52. h6 {[%clk 0:00:03]}  c3 {[%clk 0:00:08]} 53. Nxc3 {[%clk 0:00:02]}  Kg5 {[%clk 0:00:08]} 54. h7 {[%clk 0:00:03]}  Kf4 {[%clk 0:00:09]} 55. h8=Q {[%clk 0:00:03]}  Ke3 {[%clk 0:00:10]} 56. Qe5+ {[%clk 0:00:04]}  Kd3 {[%clk 0:00:10]} 57. Qxa5 {[%clk 0:00:04]}  Kc4 {[%clk 0:00:11]} 58. Qb5+ {[%clk 0:00:05]}  Kd4 {[%clk 0:00:12]} 59. a5 {[%clk 0:00:05]}  Ke3 {[%clk 0:00:13]} 60. Nd5+ {[%clk 0:00:06]}  Kd2 {[%clk 0:00:14]} 61. Nc7 {[%clk 0:00:06]}  Kc3 {[%clk 0:00:15]} 62. a6 {[%clk 0:00:07]}  Kd4 {[%clk 0:00:15]} 63. a7 {[%clk 0:00:07]}  Kc3 {[%clk 0:00:16]} 64. a8=Q {[%clk 0:00:06]}  Kc2 {[%clk 0:00:17]} 65. Qaa4+ {[%clk 0:00:07]}  Kc1 {[%clk 0:00:18]} 66. Qf1+ {[%clk 0:00:06]}  Kb2 {[%clk 0:00:18]} 67. Qe2+ {[%clk 0:00:06]}  Kc3 {[%clk 0:00:19]} 68. Qec2# {[%clk 0:00:06]} 1-0


[Site "https://www.chess.com"]

[Event "Titled Tuesday Blitz August 15 Late 2023"]
[White "Paravyan, David"]
[Black "Jovic, Stanoje"]
[WhiteFideId "4194985"]
[BlackFideId "905020"]
[WhiteElo "2970"]
[BlackElo "2474"]
[Result "1-0"]
[Round "1"]
[TimeControl "180+1"]
[Date "2023.08.15"]
[WhiteClock "0:01:45"]
[BlackClock "0:00:00"]
[Board "22"]

1. e4 {[%clk 0:02:41]}  c6 {[%clk 0:02:59]} 2. d4 {[%clk 0:02:41]}  d5 {[%clk 0:02:59]} 3. e5 {[%clk 0:02:41]}  c5 {[%clk 0:02:59]} 4. Nf3 {[%clk 0:02:42]}  Nc6 {[%clk 0:02:57]} 5. dxc5 {[%clk 0:02:42]}  Bg4 {[%clk 0:02:56]} 6. c3 {[%clk 0:02:41]}  e6 {[%clk 0:02:54]} 7. Be3 {[%clk 0:02:33]}  Nge7 {[%clk 0:02:44]} 8. Nbd2 {[%clk 0:02:30]}  Ng6 {[%clk 0:02:42]} 9. Qa4 {[%clk 0:02:29]}  Bxf3 {[%clk 0:02:34]} 10. Nxf3 {[%clk 0:02:29]}  Be7 {[%clk 0:02:31]} 11. Bb5 {[%clk 0:02:28]}  Qc7 {[%clk 0:02:27]} 12. h4 {[%clk 0:02:25]}  O-O {[%clk 0:02:20]} 13. h5 {[%clk 0:02:21]}  Ngxe5 {[%clk 0:02:16]} 14. h6 {[%clk 0:02:21]}  Nxf3+ {[%clk 0:02:11]} 15. gxf3 {[%clk 0:02:20]}  g6 {[%clk 0:02:10]} 16. Kf1 {[%clk 0:02:15]}  a6 {[%clk 0:02:02]} 17. Be2 {[%clk 0:02:14]}  e5 {[%clk 0:01:57]} 18. Rd1 {[%clk 0:02:12]}  Rad8 {[%clk 0:01:57]} 19. f4 {[%clk 0:02:09]}  Bf6 {[%clk 0:01:52]} 20. fxe5 {[%clk 0:02:09]}  Bxe5 {[%clk 0:01:47]} 21. Bf3 {[%clk 0:02:04]}  d4 {[%clk 0:01:42]} 22. cxd4 {[%clk 0:02:03]}  Bf4 {[%clk 0:01:22]} 23. d5 {[%clk 0:01:55]}  Bxe3 {[%clk 0:01:20]} 24. d6 {[%clk 0:01:56]}  Qd7 {[%clk 0:01:06]} 25. fxe3 {[%clk 0:01:52]}  Rde8 {[%clk 0:00:57]} 26. Qf4 {[%clk 0:01:49]}  Ne5 {[%clk 0:00:54]} 27. Qf6 {[%clk 0:01:47]}  Qb5+ {[%clk 0:00:00]} 28. Be2 {[%clk 0:01:45]} 1-0


[Site "https://www.chess.com"]

[Event "Titled Tuesday Blitz August 15 Late 2023"]
[White "Shubenkova, Veronika"]
[Black "Svane, Rasmus"]
[WhiteFideId "44124040"]
[BlackFideId "4657101"]
[WhiteElo "2472"]
[BlackElo "2958"]
[Result "0-1"]
[Round "1"]
[TimeControl "180+1"]
[Date "2023.08.15"]
[WhiteClock "0:01:31"]
[BlackClock "0:01:07"]
[Board "25"]

1. c4 {[%clk 0:03:00]}  e6 {[%clk 0:03:00]} 2. Nc3 {[%clk 0:03:01]}  d5 {[%clk 0:03:00]} 3. cxd5 {[%clk 0:03:01]}  exd5 {[%clk 0:03:01]} 4. d4 {[%clk 0:03:02]}  c6 {[%clk 0:03:02]} 5. e3 {[%clk 0:03:02]}  Nf6 {[%clk 0:03:01]} 6. Nf3 {[%clk 0:03:03]}  Bf5 {[%clk 0:02:57]} 7. Bd3 {[%clk 0:03:03]}  Bxd3 {[%clk 0:02:58]} 8. Qxd3 {[%clk 0:03:04]}  Bd6 {[%clk 0:02:58]} 9. O-O {[%clk 0:03:04]}  O-O {[%clk 0:02:59]} 10. e4 {[%clk 0:03:04]}  dxe4 {[%clk 0:02:56]} 11. Nxe4 {[%clk 0:03:05]}  Nxe4 {[%clk 0:02:55]} 12. Qxe4 {[%clk 0:03:06]}  Re8 {[%clk 0:02:55]} 13. Qd3 {[%clk 0:03:05]}  Nd7 {[%clk 0:02:51]} 14. Bg5 {[%clk 0:03:05]}  Be7 {[%clk 0:02:49]} 15. h4 {[%clk 0:03:03]}  h6 {[%clk 0:02:48]} 16. Bxe7 {[%clk 0:03:02]}  Rxe7 {[%clk 0:02:47]} 17. Rae1 {[%clk 0:03:03]}  Nf6 {[%clk 0:02:44]} 18. Rxe7 {[%clk 0:03:00]}  Qxe7 {[%clk 0:02:45]} 19. Re1 {[%clk 0:03:01]}  Qd6 {[%clk 0:02:39]} 20. Qf5 {[%clk 0:02:59]}  Rd8 {[%clk 0:02:36]} 21. g4 {[%clk 0:02:54]}  Qd7 {[%clk 0:02:28]} 22. Qxd7 {[%clk 0:02:49]}  Nxd7 {[%clk 0:02:28]} 23. g5 {[%clk 0:02:48]}  hxg5 {[%clk 0:02:28]} 24. Nxg5 {[%clk 0:02:47]}  f6 {[%clk 0:02:07]} 25. Nf3 {[%clk 0:02:44]}  Kf7 {[%clk 0:02:06]} 26. Kg2 {[%clk 0:02:42]}  Nf8 {[%clk 0:01:49]} 27. Kg3 {[%clk 0:02:32]}  Ne6 {[%clk 0:01:49]} 28. Rd1 {[%clk 0:02:32]}  Rd5 {[%clk 0:01:47]} 29. Kg4 {[%clk 0:02:30]}  g6 {[%clk 0:01:38]} 30. Rd2 {[%clk 0:02:29]}  a5 {[%clk 0:01:32]} 31. Kg3 {[%clk 0:02:25]}  a4 {[%clk 0:01:31]} 32. Kg2 {[%clk 0:02:25]}  Ke7 {[%clk 0:01:25]} 33. Kf1 {[%clk 0:02:25]}  Kd6 {[%clk 0:01:20]} 34. Ke2 {[%clk 0:02:25]}  Rf5 {[%clk 0:01:18]} 35. Ke3 {[%clk 0:02:23]}  Nf4 {[%clk 0:01:15]} 36. b3 {[%clk 0:02:14]}  Nd5+ {[%clk 0:01:14]} 37. Ke2 {[%clk 0:02:10]}  a3 {[%clk 0:01:14]} 38. Rc2 {[%clk 0:02:05]}  b5 {[%clk 0:01:12]} 39. Rc1 {[%clk 0:01:45]}  b4 {[%clk 0:01:11]} 40. Nd2 {[%clk 0:01:41]}  Nc3+ {[%clk 0:01:10]} 41. Ke3 {[%clk 0:01:41]}  Nxa2 {[%clk 0:01:09]} 42. Rc4 {[%clk 0:01:39]}  Nc3 {[%clk 0:01:08]} 43. Rxb4 {[%clk 0:01:31]}  Nd5+ {[%clk 0:01:07]} 0-1


[Site "https://www.chess.com"]